fUSD/lending_fUSD_20240612
["ID","MTS","AMOUNT","RATE_DAILY","PERIOD"]
[329189393,1718166637882,-500.0,0.00019178,2]
[329189394,1718166637912,-515.17037374,0.00019178,2]
[329189395,1718166637924,-507.86120087,0.00019178,2]
[329189396,1718166637939,-930.94,0.00019178,2]
[329189397,1718166637952,-500.0,0.00019178,2]
[329189398,1718166637966,-705.04,0.00019178,2]
[329189399,1718166637978,-500.0,0.00019178,2]
[329189400,1718166637994,-500.0,0.00019178,2]
[329189401,1718166638010,-500.0,0.00019178,2]
[329189402,1718166638023,-506.42164753,0.00019178,2]
[329189403,1718166638036,-500.0,0.00019178,2]
[329189404,1718166638048,-514.45026295,0.00019178,2]
[329189405,1718166638059,-500.0,0.00019178,2]
[329189406,1718166638071,-500.0,0.00019178,2]
[329189407,1718166638087,-824.82,0.00019178,2]
[329189408,1718166638101,-500.0,0.00019178,2]
[329189409,1718166638112,-962.01,0.00019178,2]
[329189411,1718166638125,-500.0,0.00019178,2]
[329189412,1718166638136,-509.45189346,0.00019178,2]
[329189414,1718166638149,-500.0,0.00019178,2]
[329189416,1718166638164,-604.8,0.00019178,2]
[329189418,1718166638175,-505.54859901,0.00019178,2]
[329189419,1718166638186,-500.0,0.00019178,2]
[329189420,1718166638197,-505.28733989,0.00019178,2]
[329189421,1718166638207,-500.0,0.00019178,2]
[329189423,1718166638218,-500.0,0.00019178,2]
[329189424,1718166638229,-719.91,0.00019178,2]
[329189426,1718166638239,-500.0,0.00019178,2]
[329189428,1718166638249,-500.0,0.00019178,2]
[329189430,1718166638260,-500.0,0.00019178,2]
[329189431,1718166638271,-629.18,0.00019178,2]
[329189432,1718166638282,-500.0,0.00019178,2]
[329189433,1718166638292,-515.93883212,0.00019178,2]
[329189434,1718166638303,-573.48,0.00019178,2]
[329189435,1718166638313,-500.0,0.00019178,2]
[329189436,1718166638324,-500.0,0.00019178,2]
[329189437,1718166638335,-500.0,0.00019178,2]
[329189438,1718166638344,-500.0,0.00019178,2]
[329189439,1718166638355,-500.0,0.00019178,2]
[329189440,1718166638365,-500.0,0.00019178,2]
[329189441,1718166638378,-500.0,0.00019178,2]
[329189442,1718166638390,-500.0,0.00019178,2]
[329189443,1718166638401,-500.0,0.00019178,2]
[329189444,1718166638411,-974.12,0.00019178,2]
[329189445,1718166638422,-505.6111838,0.00019178,2]
[329189446,1718166638432,-722.15,0.00019178,2]
[329189447,1718166638442,-500.0,0.00019178,2]
[329189448,1718166638452,-500.0,0.00019178,2]
[329189449,1718166638464,-1998.34,0.00019178,2]
[329189450,1718166638474,-500.0,0.00019178,2]
[329189451,1718166638485,-500.0,0.00019178,2]
[329189452,1718166638495,-500.0,0.00019178,2]
[329189453,1718166638506,-500.0,0.00019178,2]
[329189454,1718166638519,-500.0,0.00019178,2]
[329189455,1718166638531,-500.0,0.00019178,2]
[329189456,1718166638542,-1023.38,0.00019178,2]
[329189457,1718166638553,-660.73,0.00019178,2]
[329189458,1718166638567,-1095.72,0.00019178,2]
[329189459,1718166638581,-500.0,0.00019178,2]
[329189460,1718166638592,-558.16,0.00019178,2]
[329189461,1718166638602,-500.0,0.00019178,2]
[329189462,1718166638614,-1245.64,0.00019178,2]
[329189463,1718166638654,-500.0,0.00019178,2]
[329189464,1718166638666,-1667.24,0.00019178,2]
[329189465,1718166638678,-508.43,0.00019178,2]
[329189466,1718166638691,-590.12,0.00019178,2]
[329189467,1718166638704,-505.67,0.00019178,2]
[329189468,1718166638715,-500.0,0.00019178,2]
[329189469,1718166638726,-500.0,0.00019178,2]
[329189470,1718166638736,-507.01583777,0.00019178,2]
[329189471,1718166638748,-500.0,0.00019178,2]
[329189472,1718166638759,-2060.52,0.00019178,2]
[329189473,1718166638770,-599.15,0.00019178,2]
[329189474,1718166638781,-1102.66,0.00019178,2]
[329189475,1718166638792,-2713.6,0.00019178,2]
[329189476,1718166638804,-886.1,0.00019178,2]
[329189477,1718166638814,-844.86,0.00019178,2]
[329189478,1718166638825,-503.32174419,0.00019178,2]
[329189479,1718166638836,-500.0,0.00019178,2]
[329189480,1718166638848,-521.42605368,0.00019178,2]
[329189481,1718166638861,-500.0,0.00019178,2]
[329189482,1718166639130,-500.0,0.00019178,2]
[329189483,1718166639142,-3363.88,0.00019178,2]
[329189484,1718166639153,-1662.32,0.00019178,2]
[329189485,1718166639164,-673.09,0.00019178,2]
[329189486,1718166639175,-506.54,0.00019178,2]
[329189487,1718166639186,-500.0,0.00019178,2]
[329189488,1718166639197,-500.0,0.00019178,2]
[329189489,1718166639207,-500.0,0.00019178,2]
[329189490,1718166639218,-500.0,0.00019178,2]
[329189491,1718166639230,-1312.68,0.00019178,2]
[329189492,1718166639240,-509.73036755,0.00019178,2]
[329189493,1718166639251,-538.91,0.00019178,2]
[329189494,1718166639264,-500.0,0.00019178,2]
[329189495,1718166639275,-7029.46,0.00019178,2]
[329189496,1718166639286,-514.87,0.00019178,2]
[329189497,1718166639297,-500.0,0.00019178,2]
[329189498,1718166639309,-798.54,0.00019178,2]
[329189499,1718166639320,-2346.02,0.00019178,2]
[329189500,1718166639332,-1215.34,0.00019178,2]
[329189501,1718166639342,-303.64409432,0.00019178,2]
[329189502,1718166639353,-5438.95,0.00019178,2]
[329189503,1718166639364,-574.29,0.00019178,2]
[329189504,1718166639379,-3942.73,0.00019178,2]
[329189505,1718166639390,-4239.66,0.00019178,2]
[329189506,1718166639402,-1798.58,0.00019178,2]
[329189507,1718166639416,-500.0,0.00019178,2]
[329189508,1718166639429,-1927.39128,0.00019178,2]
[329189509,1718166639439,-931.98,0.00019178,2]
[329189510,1718166639452,-912.05,0.00019178,2]
[329189511,1718166639465,-675.98,0.00019178,2]
[329189512,1718166639484,-575.06,0.00019178,2]
[329189513,1718166639495,-747.31,0.00019178,2]
[329189514,1718166639506,-3887.81,0.00019178,2]
[329189515,1718166639518,-500.0,0.00019178,2]
[329189516,1718166639540,-500.0,0.00019178,2]
[329189517,1718166639553,-1004.87,0.00019178,2]
[329189518,1718166639566,-2124.22,0.00019178,2]
[329189519,1718166639578,-1574.94,0.00019178,2]
[329189520,1718166639593,-500.0,0.00019178,2]
[329189521,1718166639606,-1569.48,0.00019178,2]
[329189522,1718166639618,-584.44,0.00019178,2]
[329189523,1718166639654,-500.0,0.00019178,2]
[329189524,1718166639672,-1315.81,0.00019178,2]
[329189525,1718166639686,-500.0,0.00019178,2]
[329189526,1718166639703,-955.8,0.00019178,2]
[329189527,1718166639719,-500.0,0.00019178,2]
[329189528,1718166639749,-894.43,0.00019178,2]
[329189529,1718166639767,-500.0,0.00019178,2]
[329189530,1718166639779,-973.37,0.00019178,2]
[329189531,1718166639790,-500.0,0.00019178,2]
[329189532,1718166639802,-555.69270891,0.00019178,2]
[329189533,1718166639819,-500.0,0.00019178,2]
[329189534,1718166639831,-638.41269232,0.00019178,2]
[329189535,1718166639842,-1565.49,0.00019178,2]
[329189536,1718166639853,-1873.00043339,0.00019178,2]
[329189537,1718166639888,-13185.83956661,0.00019178,2]
[329189538,1718166639900,-24518.71,0.00019178,2]
[329189539,1718166639911,-573.04,0.00019178,2]
[329189540,1718166639924,-3929.59,0.00019178,2]
[329189541,1718166639935,-500.0,0.00019178,2]
[329189542,1718166639946,-1255.04,0.00019178,2]
[329189543,1718166639958,-975.13,0.00019178,2]
[329189544,1718166639972,-6130.36,0.00019178,2]
[329189545,1718166639983,-652.86,0.00019178,2]
[329189546,1718166639995,-1862.07,0.00019178,2]
[329189547,1718166640007,-500.0,0.00019178,2]
[329189548,1718166640019,-2471.53,0.00019178,2]
[329189549,1718166640034,-500.0,0.00019178,2]
[329189550,1718166640046,-1059.95,0.00019178,2]
[329189551,1718166640057,-510.4464141,0.00019178,2]
[329189552,1718166640070,-500.0,0.00019178,2]
[329189553,1718166640081,-500.0,0.00019178,2]
[329189554,1718166640093,-537.68,0.00019178,2]
[329189555,1718166640105,-886.26,0.00019178,2]
[329189556,1718166640116,-500.0,0.00019178,2]
[329189557,1718166640132,-500.48910846,0.00019178,2]
[329189558,1718166640148,-783.7,0.00019178,2]
[329189559,1718166640171,-3384.8,0.00019178,2]
[329189560,1718166640184,-2309.89,0.00019178,2]
[329189561,1718166640201,-500.15,0.00019178,2]
[329189562,1718166640213,-501.48295032,0.00019178,2]
[329189563,1718166640226,-10288.97,0.00019178,2]
[329189564,1718166640238,-500.0,0.00019178,2]
[329189565,1718166640248,-550.09080097,0.00019178,2]
[329189566,1718166640259,-282.06497396,0.00019178,2]
[329189567,1718166640270,-500.0,0.00019178,2]
[329189568,1718166640281,-507.60372125,0.00019178,2]
[329189569,1718166640299,-500.0,0.00019178,2]
[329189570,1718166640310,-324.55333433,0.00019178,2]
[329189572,1718166640453,-781.03258899,0.00019178,2]
[329189573,1718166640515,-854.82014811,0.00019178,2]
[329189750,1718166642386,-767.36392857,0.00019178,2]
[329189752,1718166642396,-500.0,0.00019178,2]
[329189754,1718166642407,-3.5322348,0.00019178,2]
[329189760,1718166642464,-250.0,0.00018801,2]
[329189762,1718166642475,-583.6177652,0.00019178,2]
[329189764,1718166642485,-500.0,0.00019178,2]
[329189766,1718166642496,-500.0,0.00019178,2]
[329189769,1718166642514,-166.3822348,0.00019178,2]
[329189771,1718166642532,-982.7377652,0.00019178,2]
[329189773,1718166642544,-539.51,0.00019178,2]
[329189776,1718166642561,-746.99,0.00019178,2]
[329189778,1718166642573,-500.0,0.00019178,2]
[329189780,1718166642589,-585.13,0.00019178,2]
[329189782,1718166642599,-1913.5,0.00019178,2]
[329189784,1718166642610,-796.99,0.00019178,2]
[329189786,1718166642622,-500.0,0.00019178,2]
[329189788,1718166642650,-190.12153549,0.00019178,2]
[329189822,1718166643054,-1195.0,0.00015491,2]
[329189823,1718166643065,-1190.036,0.00018491,2]
[329189825,1718166643076,-618.91846451,0.00019178,2]
[329189827,1718166643090,-500.0,0.00019178,2]
[329189829,1718166643102,-887.81,0.00019178,2]
[329189831,1718166643114,-688.49,0.00019178,2]
[329189833,1718166643125,-931.35,0.00019178,2]
[329189835,1718166643136,-1097.05045156,0.00019178,2]
[329189844,1718166643236,-159.99954844,0.00019178,2]
[329189846,1718166643247,-1144.99,0.00019178,2]
[329189848,1718166643258,-605.47,0.00019178,2]
[329189850,1718166643268,-840.77,0.00019178,2]
[329189852,1718166643279,-823.48,0.00019178,2]
[329189854,1718166643290,-712.46,0.00019178,2]
[329189856,1718166643300,-843.11,0.00019178,2]
[329189858,1718166643310,-500.0,0.00019178,2]
[329189860,1718166643325,-500.0,0.00019178,2]
[329189862,1718166643336,-500.0,0.00019178,2]
[329189864,1718166643348,-1412.48,0.00019178,2]
[329189866,1718166643362,-2673.16,0.00019178,2]
[329189868,1718166643374,-500.0,0.00019178,2]
[329189870,1718166643386,-1031.37,0.00019178,2]
[329189872,1718166643397,-819.87,0.00019178,2]
[329189874,1718166643408,-531.37,0.00019178,2]
[329189875,1718166643419,-525.78278708,0.00019178,2]
[329189878,1718166643429,-598.29,0.00019178,2]
[329189879,1718166643440,-1916.52,0.00019178,2]
[329189882,1718166643453,-2235.0,0.00019178,2]
[329189883,1718166643463,-500.0,0.00019178,2]
[329189886,1718166643475,-500.0,0.00019178,2]
[329189887,1718166643485,-500.0,0.00019178,2]
[329189889,1718166643495,-521.99842702,0.00019178,2]
[329189891,1718166643506,-500.0,0.00019178,2]
[329189893,1718166643516,-652.94,0.00019178,2]
[329189895,1718166643527,-500.0,0.00019178,2]
[329189897,1718166643537,-504.14607327,0.00019178,2]
[329189899,1718166643549,-500.0,0.00019178,2]
[329189901,1718166643559,-500.0,0.00019178,2]
[329189903,1718166643571,-2127.16,0.00019178,2]
[329189905,1718166643584,-500.0,0.00019178,2]
[329189907,1718166643596,-7232.63,0.00019178,2]
[329189909,1718166643608,-500.0,0.00019178,2]
[329189911,1718166643620,-3699.67,0.00019178,2]
[329189912,1718166643662,-1734.65,0.00019178,2]
[329189913,1718166643674,-9338.41,0.00019178,2]
[329189914,1718166643686,-1673.84,0.00019178,2]
[329189915,1718166643697,-668.34,0.00019178,2]
[329189916,1718166643709,-500.0,0.00019178,2]
[329189917,1718166643722,-606.39,0.00019178,2]
[329189918,1718166643732,-500.0,0.00019178,2]
[329189919,1718166643747,-194.42983586,0.00019178,2]
[329189920,1718166643760,-1825.27,0.00019178,2]
[329189921,1718166643772,-1442.85,0.00019178,2]
[329189923,1718166643782,-501.29915126,0.00019178,2]
[329189925,1718166643793,-500.0,0.00019178,2]
[329189927,1718166643803,-510.03981985,0.00019178,2]
[329189929,1718166643814,-500.0,0.00019178,2]
[329189931,1718166643825,-1858.92,0.00019178,2]
[329189933,1718166643836,-500.0,0.00019178,2]
[329189935,1718166643847,-500.0,0.00019178,2]
[329189937,1718166643859,-2039.03,0.00019178,2]
[329189939,1718166643871,-2108.66,0.00019178,2]
[329189941,1718166643883,-700.05,0.00019178,2]
[329189943,1718166643893,-950.84,0.00019178,2]
[329189945,1718166643904,-1251.11,0.00019178,2]
[329189947,1718166643915,-713.21,0.00019178,2]
[329189949,1718166643926,-500.0,0.00019178,2]
[329189951,1718166643937,-2423.67,0.00019178,2]
[329189953,1718166643948,-500.0,0.00019178,2]
[329189955,1718166643959,-500.0,0.00019178,2]
[329189957,1718166643973,-771.06,0.00019178,2]
[329189959,1718166643986,-573.27058608,0.00019178,2]
[329189961,1718166643999,-500.0,0.00019178,2]
[329189963,1718166644010,-1707.88,0.00019178,2]
[329189965,1718166644022,-2894.23,0.00019178,2]
[329189967,1718166644035,-515.09567894,0.00019178,2]
[329189969,1718166644046,-888.89,0.00019178,2]
[329189971,1718166644058,-679.36,0.00019178,2]
[329189973,1718166644069,-913.63,0.00019178,2]
[329189975,1718166644081,-727.65,0.00019178,2]
[329189977,1718166644096,-500.0,0.00019178,2]
[329189979,1718166644107,-315.84304079,0.00019178,2]
[329189981,1718166644117,-4128.63,0.00019178,2]
[329189983,1718166644128,-504.12179206,0.00019178,2]
[329189985,1718166644142,-3325.32,0.00019178,2]
[329189987,1718166644156,-604.14,0.00019178,2]
[329189989,1718166644168,-511.65,0.00019178,2]
[329189991,1718166644180,-518.54,0.00019178,2]
[329189992,1718166644192,-895.92,0.00019178,2]
[329189995,1718166644206,-2892.9,0.00019178,2]
[329189997,1718166644219,-500.0,0.00019178,2]
[329189999,1718166644234,-2311.2,0.00019178,2]
[329190001,1718166644244,-500.0,0.00019178,2]
[329190003,1718166644256,-2297.84,0.00019178,2]
[329190005,1718166644267,-500.0,0.00019178,2]
[329190006,1718166644277,-500.0,0.00019178,2]
[329190009,1718166644288,-2368.53,0.00019178,2]
[329190011,1718166644300,-981.21873082,0.00019178,2]
[329190013,1718166644310,-500.0,0.00019178,2]
[329190014,1718166644321,-500.0,0.00019178,2]
[329190016,1718166644331,-508.11715443,0.00019178,2]
[329190018,1718166644343,-500.0,0.00019178,2]
[329190020,1718166644354,-869.03,0.00019178,2]
[329190022,1718166644364,-1628.34,0.00019178,2]
[329190024,1718166644376,-4184.09,0.00019178,2]
[329190026,1718166644388,-3057.35,0.00019178,2]
[329190028,1718166644399,-500.0,0.00019178,2]
[329190031,1718166644410,-2780.2,0.00019178,2]
[329190032,1718166644421,-500.0,0.00019178,2]
[329190035,1718166644432,-4622.71,0.00019178,2]
[329190036,1718166644442,-2648.59,0.00019178,2]
[329190039,1718166644452,-500.0,0.00019178,2]
[329190041,1718166644465,-768.62,0.00019178,2]
[329190043,1718166644477,-500.0,0.00019178,2]
[329190044,1718166644487,-607.82,0.00019178,2]
[329190047,1718166644498,-1477.55,0.00019178,2]
[329190048,1718166644509,-500.0,0.00019178,2]
[329190050,1718166644520,-560.07,0.00019178,2]
[329190053,1718166644532,-500.0,0.00019178,2]
[329190055,1718166644544,-1419.69,0.00019178,2]
[329190057,1718166644554,-1265.54,0.00019178,2]
[329190058,1718166644564,-2954.56,0.00019178,2]
[329190061,1718166644575,-633.42,0.00019178,2]
[329190063,1718166644585,-500.0,0.00019178,2]
[329190065,1718166644595,-3834.01,0.00019178,2]
[329190067,1718166644605,-561.75,0.00019178,2]
[329190069,1718166644615,-587.51,0.00019178,2]
[329190071,1718166644643,-857.22,0.00019178,2]
[329190073,1718166644660,-1757.67,0.00019178,2]
[329190074,1718166644670,-2898.41,0.00019178,2]
[329190076,1718166644682,-2111.99,0.00019178,2]
[329190078,1718166644692,-1631.45,0.00019178,2]
[329190080,1718166644702,-500.0,0.00019178,2]
[329190082,1718166644713,-533.19,0.00019178,2]
[329190084,1718166644726,-505.03004979,0.00019178,2]
[329190086,1718166644737,-503.48021753,0.00019178,2]
[329190088,1718166644747,-985.2,0.00019178,2]
[329190090,1718166644759,-500.0,0.00019178,2]
[329190092,1718166644771,-1519.78,0.00019178,2]
[329190094,1718166644782,-500.0,0.00019178,2]
[329190096,1718166644793,-1915.94,0.00019178,2]
[329190098,1718166644804,-500.0,0.00019178,2]
[329190100,1718166644815,-896.1,0.00019178,2]
[329190102,1718166644826,-199.30300333,0.00019178,2]
[329190104,1718166644838,-500.0,0.00019178,2]
[329190105,1718166644849,-679.42,0.00019178,2]
[329190108,1718166644860,-500.0,0.00019178,2]
[329190109,1718166644873,-500.0,0.00019178,2]
[329190112,1718166644887,-768.85,0.00019178,2]
[329190113,1718166644899,-1102.23,0.00019178,2]
[329190115,1718166644911,-896.19,0.00019178,2]
[329190117,1718166644923,-1909.97,0.00019178,2]
[329190119,1718166644933,-512.4057852,0.00019178,2]
[329190121,1718166644945,-1140.35,0.00019178,2]
[329190123,1718166644958,-509.49963356,0.00019178,2]
[329190125,1718166644972,-500.0,0.00019178,2]
[329190127,1718166644983,-780.13,0.00019178,2]
[329190129,1718166644994,-6118.51,0.00019178,2]
[329190131,1718166645004,-500.0,0.00019178,2]
[329190133,1718166645014,-500.0,0.00019178,2]
[329190135,1718166645026,-833.33,0.00019178,2]
[329190137,1718166645039,-500.0,0.00019178,2]
[329190139,1718166645050,-500.0,0.00019178,2]
[329190141,1718166645060,-500.0,0.00019178,2]
[329190143,1718166645071,-500.0,0.00019178,2]
[329190145,1718166645082,-200.0,0.00019178,2]
[329190147,1718166645094,-200.0,0.00019178,2]
[329190149,1718166645104,-200.0,0.00019178,2]
[329190151,1718166645115,-200.0,0.00019178,2]
[329190153,1718166645127,-200.0,0.00019178,2]
[329190155,1718166645139,-200.0,0.00019178,2]
[329190157,1718166645150,-178.0,0.00019178,2]
[329190159,1718166645160,-5133.24,0.00019178,2]
[329190161,1718166645171,-153.702822,0.00019178,2]
[329190164,1718166645183,-3613.502,0.00019188,2]
[329190166,1718166645193,-167.12061151,0.00019215,2]
[329190167,1718166645203,-17997.9573252,0.00019215,2]
[329190169,1718166645213,-183.80381199,0.00019215,2]
[329190172,1718166645225,-518.0,0.00019315,2]
[329190174,1718166645236,-500.0,0.00019315,2]
[329190176,1718166645246,-500.0,0.00019315,2]
[329190178,1718166645256,-500.0,0.00019315,2]
[329190180,1718166645266,-540.47632801,0.00019315,2]
[329190182,1718166645277,-500.0,0.00019315,2]
[329190183,1718166645287,-500.0,0.00019315,2]
[329190185,1718166645298,-500.0,0.00019315,2]
[329190187,1718166645309,-594.58776063,0.00019315,2]
[329190190,1718166645322,-500.0,0.00019315,2]
[329190192,1718166645332,-507.17195467,0.00019315,2]
[329190194,1718166645342,-500.0,0.00019315,2]
[329190196,1718166645352,-500.0,0.00019315,2]
[329190198,1718166645363,-500.0,0.00019315,2]
[329190200,1718166645374,-500.0,0.00019315,2]
[329190201,1718166645389,-500.0,0.00019315,2]
[329190204,1718166645401,-518.79021644,0.00019315,2]
[329190206,1718166645414,-500.0,0.00019315,2]
[329190208,1718166645426,-500.0,0.00019315,2]
[329190210,1718166645436,-500.0,0.00019315,2]
[329190212,1718166645446,-500.0,0.00019315,2]
[329190214,1718166645458,-500.0,0.00019315,2]
[329190216,1718166645470,-500.0,0.00019315,2]
[329190218,1718166645480,-500.0,0.00019315,2]
[329190220,1718166645489,-500.0,0.00019315,2]
[329190222,1718166645499,-500.0,0.00019315,2]
[329190224,1718166645511,-500.0,0.00019315,2]
[329190226,1718166645521,-500.0,0.00019315,2]
[329190228,1718166645533,-500.0,0.00019315,2]
[329190230,1718166645544,-500.0,0.00019315,2]
[329190232,1718166645557,-500.0,0.00019315,2]
[329190234,1718166645571,-500.0,0.00019315,2]
[329190236,1718166645582,-500.0,0.00019315,2]
[329190238,1718166645598,-500.0,0.00019315,2]
[329190240,1718166645612,-500.0,0.00019315,2]
[329190242,1718166645654,-500.0,0.00019315,2]
[329190244,1718166645665,-500.0,0.00019315,2]
[329190246,1718166645676,-500.0,0.00019315,2]
[329190248,1718166645688,-500.0,0.00019315,2]
[329190251,1718166645699,-500.0,0.00019315,2]
[329190253,1718166645709,-500.0,0.00019315,2]
[329190254,1718166645721,-500.0,0.00019315,2]
[329190256,1718166645732,-500.0,0.00019315,2]
[329190258,1718166645742,-500.0,0.00019315,2]
[329190260,1718166645752,-500.0,0.00019315,2]
[329190262,1718166645762,-500.0,0.00019315,2]
[329190264,1718166645773,-500.0,0.00019315,2]
[329190266,1718166645784,-779.61,0.00019315,2]
[329190268,1718166645794,-500.0,0.00019315,2]
[329190271,1718166645808,-500.0,0.00019315,2]
[329190273,1718166645817,-500.0,0.00019315,2]
[329190275,1718166645828,-500.0,0.00019315,2]
[329190276,1718166645839,-500.0,0.00019315,2]
[329190278,1718166645849,-500.0,0.00019315,2]
[329190280,1718166645859,-333.55483266,0.00019315,2]
[329190282,1718166645870,-500.0,0.00019315,2]
[329190285,1718166645881,-500.0,0.00019315,2]
[329190287,1718166645891,-500.0,0.00019315,2]
[329190289,1718166645902,-500.0,0.00019315,2]
[329190291,1718166645913,-500.0,0.00019315,2]
[329190293,1718166645923,-500.0,0.00019315,2]
[329190295,1718166645935,-500.0,0.00019315,2]
[329190297,1718166645945,-500.0,0.00019315,2]
[329190299,1718166645956,-594.96,0.00019315,2]
[329190301,1718166645967,-500.0,0.00019315,2]
[329190303,1718166645977,-500.0,0.00019315,2]
[329190305,1718166645988,-500.0,0.00019315,2]
[329190307,1718166645999,-500.0,0.00019315,2]
[329190309,1718166646010,-500.0,0.00019315,2]
[329190311,1718166646022,-500.0,0.00019315,2]
[329190313,1718166646033,-700.54,0.00019315,2]
[329190315,1718166646044,-500.0,0.00019315,2]
[329190317,1718166646054,-500.0,0.00019315,2]
[329190319,1718166646064,-500.0,0.00019315,2]
[329190321,1718166646075,-403.36013777,0.00019315,2]
[329190323,1718166646085,-500.0,0.00019315,2]
[329190325,1718166646096,-500.0,0.00019315,2]
[329190327,1718166646108,-500.0,0.00019315,2]
[329190329,1718166646118,-500.0,0.00019315,2]
[329190331,1718166646129,-748.55,0.00019315,2]
[329190333,1718166646139,-500.0,0.00019315,2]
[329190335,1718166646150,-500.0,0.00019315,2]
[329190337,1718166646160,-500.0,0.00019315,2]
[329190339,1718166646172,-500.0,0.00019315,2]
[329190341,1718166646183,-808.76,0.00019315,2]
[329190343,1718166646192,-500.0,0.00019315,2]
[329190345,1718166646203,-500.0,0.00019315,2]
[329190347,1718166646213,-500.0,0.00019315,2]
[329190349,1718166646225,-500.0,0.00019315,2]
[329190351,1718166646235,-500.0,0.00019315,2]
[329190353,1718166646245,-509.34,0.00019315,2]
[329190355,1718166646256,-500.0,0.00019315,2]
[329190357,1718166646265,-500.0,0.00019315,2]
[329190359,1718166646276,-500.0,0.00019315,2]
[329190361,1718166646286,-500.0,0.00019315,2]
[329190363,1718166646296,-500.0,0.00019315,2]
[329190365,1718166646306,-500.0,0.00019315,2]
[329190367,1718166646317,-500.0,0.00019315,2]
[329190369,1718166646328,-500.0,0.00019315,2]
[329190371,1718166646338,-500.0,0.00019315,2]
[329190373,1718166646349,-500.0,0.00019315,2]
[329190375,1718166646359,-500.0,0.00019315,2]
[329190377,1718166646368,-500.0,0.00019315,2]
[329190379,1718166646382,-500.0,0.00019315,2]
[329190381,1718166646393,-500.0,0.00019315,2]
[329190383,1718166646403,-62.49788203,0.00019315,2]
[329190425,1718166646902,-437.50211797,0.00019315,2]
[329190428,1718166646912,-500.0,0.00019315,2]
[329190429,1718166646922,-500.0,0.00019315,2]
[329190432,1718166646933,-225.99808203,0.00019315,2]
[329190461,1718166647238,-274.00191797,0.00019315,2]
[329190463,1718166647249,-500.0,0.00019315,2]
[329190465,1718166647260,-121.86351299,0.00019315,2]
[329190468,1718166647282,-378.13648701,0.00019315,2]
[329190470,1718166647292,-500.0,0.00019315,2]
[329190472,1718166647302,-750.7674915,0.00019315,2]
[329190476,1718166647338,-153.2625085,0.00019315,2]
[329190478,1718166647348,-500.0,0.00019315,2]
[329190480,1718166647359,-500.0,0.00019315,2]
[329190482,1718166647374,-500.0,0.00019315,2]
[329190484,1718166647388,-109.4137141,0.00019315,2]
[329190487,1718166647402,-390.5862859,0.00019315,2]
[329190489,1718166647414,-532.59850817,0.00019315,2]
[329190491,1718166647428,-77.67149183,0.00019315,2]
[329190493,1718166647441,-253.5977474,0.00019315,2]
[329190495,1718166647454,-246.4022526,0.00019315,2]
[329190497,1718166647466,-57.93509943,0.00019315,2]
[329190515,1718166647670,-1567.869,0.00015491,2]
[329190517,1718166647681,-994.57490057,0.00019315,2]
[329190519,1718166647692,-500.0,0.00019315,2]
[329190521,1718166647702,-857.75,0.00019315,2]
[329190523,1718166647715,-500.0,0.00019315,2]
[329190525,1718166647727,-500.0,0.00019315,2]